[Event "24th Hoogeschool Zeeland 2022"]
[Site "Vlissingen"]
[Date "2022.08.09"]
[Round "5.7"]
[White "Vrolijk, Liam"]
[Black "Sorbe, Stephane"]
[Result "1-0"]
[ECO "A11"]
[WhiteElo "2464"]
[BlackElo "2352"]
[Annotator "TA"]
[PlyCount "129"]
[EventDate "2022.08.05"]
[EventType "swiss"]
[EventCountry "NED"]
[SourceTitle "playchess.com"]
[Source "ChessBase"]
[SourceQuality "1"]
[TimeControl "40/5400+30:1800+30"]

{[%evp 11,129,4,18,25,28,21,8,27,21,1,0,0,0,18,33,8,18,13,15,17,65,53,53,59,65,62,73,73,61,63,61,64,68,73,69,56,74,65,70,70,69,85,79,58,68,77,94,97,102,96,95,85,135,128,134,136,214,214,214,214,219,212,236,141,230,127,179,154,145,122,162,100,95,93,95,100,92,92,162,163,168,171,200,201,198,159,160,159,200,179,178,129,206,206,205,201,193,173,216,207,207,197,206,208,206,193,201,201,263,263,259,194,254,256,236,239,250,254,377,376]} 1. Nf3 {[%emt 0:07:53]} d5 {[%emt 0:00:20]} 2. g3 {[%emt 0:00:07]} Nf6 {[%emt 0:00:38]} 3. Bg2 {[%emt 0:00:09]} c6 {[%emt 0:00:23]} 4. O-O {[%emt 0:00:48]} Bf5 {[%emt 0:00:11]} 5. d3 {[%emt 0:02:42]} e6 {[%emt 0:01:39]} 6. c4 {[%emt 0:01:59]} Be7 {[%emt 0:14:33]} 7. Qb3 $1 {[%emt 0:01:16][%mdl 4] is now more promising than 7.Be3. A11: English Opening: 1...c6.} Qb6 {[%emt 0:01:50]} 8. Be3 {[%emt 0:00:47]} Qxb3 {[%emt 0:00:45]} 9. axb3 {[%emt 0:00:09] The position is equal.} a6 {[%emt 0:02:00]} 10. Bd2 {[%emt 0:07:16]} Nbd7 {[%emt 0:05:09]} 11. Bc3 {[%emt 0:03:41]} O-O {[%emt 0:05:32]} 12. Nbd2 {[%emt 0:01:55] [#]} c5 $146 {[%emt 0:08:10]} ({Predecessor:} 12... h6 13. b4 dxc4 14. dxc4 Nb6 15. Nd4 Bg6 16. N4b3 Rfd8 17. Na5 Rd7 18. Ndb3 Rad8 {1-0 (64) Grigorov,G (2509)-Saez Coma,A (2202) Chess.com INT 2021}) 13. d4 {[%emt 0:01:42]} (13. e4 $5 dxe4 14. Nh4 $14) 13... Ne4 {[%emt 0:02:06]} 14. cxd5 {[%emt 0:03:14]} exd5 {[%emt 0:00:22]} 15. dxc5 {[%emt 0:05:33]} Bxc5 {[%emt 0:05:01]} (15... Ndxc5 $11 16. Nd4 Nxc3) 16. b4 {[%emt 0:05:06] Strongly threatening Nxe4.} Bb6 {[%emt 0:05:38]} 17. Nxe4 {[%emt 0:02:37]} Bxe4 {[%emt 0:01:09]} 18. Rfd1 {[%emt 0:00:22]} Nf6 {[%emt 0:05:28]} 19. Bd4 {[%emt 0:05:45]} Bxd4 {[%emt 0:01:26]} 20. Nxd4 {[%emt 0:01:57]} Bxg2 {[%emt 0:03:18]} 21. Kxg2 {[%emt 0:02:36]} g6 {[%emt 0:00:26]} 22. Ra5 {[%emt 0:02:40]} Rfc8 {[%emt 0:07:54]} 23. b3 {[%emt 0:05:37]} Rab8 {[%emt 0:05:26]} 24. b5 {[%emt 0:04:00] White is more active.} axb5 {[%emt 0:00:16]} 25. Rxb5 {[%emt 0:00:10]} b6 {[%emt 0:00:25]} 26. Ra1 {[%emt 0:02:08]} Rc5 {[%emt 0:00:21]} 27. Ra6 {[%emt 0:03:24]} Rxb5 {[%emt 0:00:38]} 28. Nxb5 $14 {[%emt 0:02:55][%mdl 4096] Endgame KRN-KRN} Ne4 {[%emt 0:00:33]} 29. Ra7 {[%emt 0:02:29]} Rc8 {[%emt 0:04:11]} 30. f3 {[%emt 0:05:30]} Nc5 {[%emt 0:07:59]} 31. b4 {[%emt 0:02:20]} Ne6 {[%emt 0:00:18] [#]} (31... Nb3 $142) 32. Rxf7 $3 $16 {[%emt 0:04:47][%mdl 512]} Rc4 {[%emt 0:09:14]} 33. Re7 {[%emt 0:04:08]} Rxb4 {[%emt 0:01:20] [#]} (33... Nd4 $16) 34. Nc3 $1 $18 {[%emt 0:00:20]} ({But not} 34. Rxe6 $6 Rxb5 35. Rd6 Kf7 $16) 34... Nd4 {[%emt 0:02:20]} 35. Nxd5 {[%emt 0:00:47]} Rb2 {[%emt 0:00:01]} 36. Kf2 {[%emt 0:01:01]} b5 {[%emt 0:00:04]} 37. Re4 {[%emt 0:09:10]} (37. Nf6+ $18 Kf8 38. Re4 (38. Rxh7 Rxe2+ 39. Kf1 Rc2 $11)) 37... Nc2 {[%emt 0:00:52]} (37... Nc6 $16 {was worth a try.} 38. Ne7+ Nxe7) 38. Ne3 {[%emt 0:00:00]} (38. Re8+ $18 Kg7 39. Re7+ Kg8 40. Rd7) 38... Na3 {[%emt 0:00:38]} (38... Nxe3 $16 {is a better defense.} 39. Rxe3 (39. Kxe3 Kf7 $16) 39... Kf7) 39. Rd4 {[%emt 0:00:00]} b4 {[%emt 0:00:41]} 40. Nc4 {[%emt 0:00:00]} Rc2 {[%emt 0:00:37]} 41. Na5 {[%emt 0:04:32]} ({White should try} 41. Rd8+ $18 Kg7 42. Rd7+ Kg8 43. Nd2) 41... Nb5 $16 {[%emt 0:04:40]} 42. Rxb4 {[%emt 0:01:36]} Nc3 {[%emt 0:00:09]} 43. Rb8+ {[%emt 0:00:57]} Kf7 {[%emt 0:00:06]} 44. Rb7+ {[%emt 0:00:41]} Kf6 {[%emt 0:00:37]} (44... Kf8 $16) 45. Rxh7 $18 {[%emt 0:01:18]} Rxe2+ {[%emt 0:00:09]} 46. Kf1 {[%emt 0:01:12]} Ra2 {[%emt 0:00:22]} 47. Nc4 {[%emt 0:01:00]} Nb5 {[%emt 0:05:42]} 48. Ke1 {[%emt 0:03:38]} Nd4 {[%emt 0:01:55]} 49. Nd2 {[%emt 0:00:26]} Ke6 {[%emt 0:02:03] Against Rd7} 50. Rb7 {[%emt 0:05:35]} g5 {[%emt 0:01:20]} 51. Rb8 {[%emt 0:05:24]} (51. Rb6+ $18 Ke7 52. Rg6) 51... Ke5 {[%emt 0:02:10]} (51... Ra3 $16) 52. Re8+ {[%emt 0:00:41]} Kf6 {[%emt 0:01:46]} 53. Re4 {[%emt 0:00:23]} Nf5 {[%emt 0:01:24]} 54. Ke2 {[%emt 0:00:18]} Ra1 {[%emt 0:00:42]} 55. Rb4 {[%emt 0:00:18]} Ra2 {[%emt 0:00:36]} 56. Kd3 {[%emt 0:00:50]} Ra3+ {[%emt 0:02:13]} 57. Rb3 {[%emt 0:00:27]} Ra6 {[%emt 0:00:21]} 58. Nc4 {[%emt 0:01:14] Inhibits Rd6+.} Ra2 {[%emt 0:00:23]} 59. Rb2 {[%emt 0:00:23]} Ra8 {[%emt 0:00:40]} 60. Rb6+ {[%emt 0:00:22]} Kg7 {[%emt 0:00:05]} 61. Ne5 {[%emt 0:01:24] Rg6+ is the strong threat.} Ne7 {[%emt 0:00:08] Prevents Rg6+.} (61... Rd8+ $142 62. Ke2 Rd5) 62. Re6 {[%emt 0:00:22]} Ra3+ {[%emt 0:00:36]} 63. Ke2 {[%emt 0:00:35]} Ra7 {[%emt 0:01:18]} 64. Kf2 {[%emt 0:00:39]} Kh7 {[%emt 0:00:47]} (64... Ra2+ {was called for.} 65. Kf1 Kf8) 65. Nf7 {[%emt 0:00:44] Weighted Error Value: White=0.10 (very precise) /Black=0.17 (very precise)} 1-0

[Event "24th Hoogeschool Zeeland 2022"]
[Site "Vlissingen"]
[Date "2022.08.09"]
[Round "5.8"]
[White "Grutter, Tim"]
[Black "Van Delft, Merijn"]
[Result "1-0"]
[ECO "B91"]
[WhiteElo "2246"]
[BlackElo "2383"]
[Annotator "TA"]
[PlyCount "81"]
[EventDate "2022.08.05"]
[EventType "swiss"]
[EventCountry "NED"]
[SourceTitle "playchess.com"]
[Source "ChessBase"]
[SourceQuality "1"]
[TimeControl "40/5400+30:1800+30"]

{[%evp 16,80,11,7,19,14,28,18,16,39,36,37,31,37,48,26,47,15,54,46,71,0,0,0,0,7,0,0,72,52,46,40,41,42,42,27,62,63,60,40,41,14,32,0,12,17,30,30,31,33,35,14,131,52,408,393,1658,1650,5701,5700,5665,871,2637,1975,29996,29997,29999]} 1. e4 {[%emt 0:00:04]} c5 {[%emt 0:00:06]} 2. Nf3 {[%emt 0:00:04]} d6 {[%emt 0:00:09]} 3. d4 {[%emt 0:00:01]} cxd4 {[%emt 0:00:06]} 4. Nxd4 {[%emt 0:00:02]} Nf6 {[%emt 0:00:24]} 5. Nc3 {[%emt 0:00:04]} a6 {[%emt 0:00:04]} 6. g3 {[%emt 0:00:03]} e5 {[%emt 0:00:34]} 7. Nb3 {[%emt 0:00:03]} Be7 {[%emt 0:01:00]} 8. Bg2 {[%emt 0:00:03]} O-O {[%emt 0:00:47]} 9. O-O {[%emt 0:00:05]} a5 {[%emt 0:00:45] B91: Sicilian Najdorf: 6 g3.} 10. a4 {[%emt 0:04:59] [#]} Bg4 $146 {[%emt 0:00:16]} ({Predecessor:} 10... Na6 11. Nb5 Bg4 12. Qd2 Nb4 13. c3 Nc6 14. Qd3 Be6 15. Nd2 Rc8 16. Rd1 Nd7 {1-0 (40) Smirin,I (2595)-Kraus,O (2311) Israel 2021}) 11. Bf3 {[%emt 0:09:57]} Be6 {[%emt 0:00:17] The position is equal.} 12. Re1 {[%emt 0:05:44]} Na6 {[%emt 0:03:25]} 13. Nd2 {[%emt 0:04:50][%cal Bb3d2,Bd2f1,Bf1e3][%mdl 32]} Nb4 {[%emt 0:02:27]} 14. Nf1 {[%emt 0:02:21]} Rc8 {[%emt 0:01:20]} 15. Ne3 {[%emt 0:02:37]} Re8 {[%emt 0:02:04]} 16. Bg2 {[%emt 0:08:48]} Bf8 {[%emt 0:12:57]} 17. Re2 {[%emt 0:05:57]} Qb6 {[%emt 0:10:28]} 18. Ncd5 {[%emt 0:08:02]} (18. Nb5 $16) 18... Nfxd5 $11 {[%emt 0:04:25]} 19. exd5 {[%emt 0:01:13]} Bd7 {[%emt 0:00:20]} 20. b3 $1 {[%emt 0:03:30]} Qd4 {[%emt 0:10:42]} 21. Ba3 {[%emt 0:04:44]} b5 {[%emt 0:07:25]} (21... Qxd1+ $11 {remains equal.} 22. Rxd1 g6) 22. axb5 $16 {[%emt 0:04:16] Black must now prevent c4.} Bxb5 {[%emt 0:01:28]} 23. c4 {[%emt 0:01:15]} Bd7 {[%emt 0:00:36]} 24. Bxb4 {[%emt 0:03:32]} axb4 {[%emt 0:01:09]} 25. Rea2 {[%emt 0:00:51] Inhibits Ra8.} Qb6 {[%emt 0:03:03]} 26. Ra7 {[%emt 0:02:19]} Rc7 {[%emt 0:01:18]} 27. Rxc7 {[%emt 0:02:06]} (27. R7a6 $5 {[%cal Ra6b6]} Qb8 28. R1a5 $16) 27... Qxc7 {[%emt 0:00:13]} 28. Qd2 {[%emt 0:00:09]} Rb8 {[%emt 0:02:37]} 29. Ra6 {[%emt 0:01:24]} g6 {[%emt 0:04:19]} 30. Qa2 $36 {[%emt 0:01:48][%mdl 2048] White has some pressure.} f5 {[%emt 0:03:27]} 31. Ra7 {[%emt 0:03:35]} Rb7 {[%emt 0:05:01]} 32. Rxb7 {[%emt 0:00:16]} Qxb7 {[%emt 0:00:02]} 33. Qa5 {[%emt 0:00:31]} Bh6 {[%emt 0:00:45]} (33... f4 $11 34. Nc2 Bg4) 34. Nc2 {[%emt 0:01:06]} ({Resist} 34. Qd8+ $6 Bf8 $14) ({White should try} 34. c5 $1 $16 {[%cal Rc5c6]} dxc5 35. d6) 34... Bd2 $2 {[%emt 0:00:54][%mdl 8192] [#] Black cannot hold the game after this.} ({Black should play} 34... Kf7 $14) 35. c5 $1 $18 {[%emt 0:02:59]} dxc5 $2 {[%emt 0:00:45]} (35... Qc8 36. c6 f4 37. cxd7 Qxd7 38. Nxb4 e4 39. Qa8+ Kg7 40. Qa1+ Kg8 41. Qa8+ Kg7) 36. Qd8+ {[%emt 0:01:28]} Kf7 {[%emt 0:04:46] [#]} 37. d6 $1 {[%emt 0:00:25]} e4 {[%emt 0:01:27]} 38. Qe7+ {[%emt 0:00:16]} Kg8 {[%emt 0:00:08]} 39. Bf1 {[%emt 0:00:09] Intending Bc4+ and mate.} Bc3 {[%emt 0:02:05]} 40. Bc4+ {[%emt 0:00:15]} Kh8 {[%emt 0:00:07]} 41. Qf8# {[%emt 0:30:54] Weighted Error Value: White=0.11 (very precise) /Black=0.66} 1-0

[Event "24th Hoogeschool Zeeland 2022"]
[Site "Vlissingen"]
[Date "2022.08.09"]
[Round "5.9"]
[White "Harsha Bharathakoti"]
[Black "Duchene, Rene"]
[Result "1-0"]
[ECO "C12"]
[WhiteElo "2547"]
[BlackElo "2137"]
[Annotator "TA"]
[PlyCount "27"]
[EventDate "2022.08.05"]
[EventType "swiss"]
[EventCountry "NED"]
[SourceTitle "playchess.com"]
[Source "ChessBase"]
[SourceQuality "1"]
[TimeControl "40/5400+30:1800+30"]

{[%evp 17,27,-22,-27,-31,119,98,98,100,180,175,207,218]} 1. e4 {[%emt 0:03:12]} e6 {[%emt 0:00:06]} 2. d4 {[%emt 0:00:08]} d5 {[%emt 0:00:08]} 3. Nc3 {[%emt 0:00:03]} Nf6 {[%emt 0:00:13]} 4. Bg5 {[%emt 0:00:06]} Bb4 {[%emt 0:00:56]} 5. e5 {[%emt 0:00:09]} h6 {[%emt 0:00:05]} 6. Bd2 {[%emt 0:00:05]} Bxc3 {[%emt 0:00:27]} 7. bxc3 {[%emt 0:00:04]} Ne4 {[%emt 0:00:09]} 8. Bc1 $1 {[%emt 0:00:03][%mdl 4] is currently scoring better than 8.Qg4.} c5 {[%emt 0:02:07]} 9. Qg4 {[%emt 0:17:52]} Kf8 {[%emt 0:12:51] Threatens to win with ...Qa5.} 10. Ne2 {[%emt 0:10:13] C12: French: Classical System: McCutcheon Variation.} h5 {[%emt 0:07:00]} (10... cxd4 $15 {stays ahead.} 11. f3 Nxc3) 11. Qf4 $16 {[%emt 0:03:23] [#] Hoping for f3.} Qa5 $146 {[%emt 0:04:08] [#]} ({Predecessor:} 11... cxd4 12. cxd4 Qa5+ 13. c3 b5 14. f3 Nxc3 15. Bd2 b4 16. Rc1 Nc6 17. Nxc3 bxc3 18. Rxc3 Qb6 {1-0 (39) Polivanov,A (2349)-Kagramanianz,V (2305) Sudak 2002}) 12. f3 $1 {[%emt 0:00:44]} Nxc3 {[%emt 0:00:56] [#]} (12... g5 $16 13. Qe3 cxd4 14. Qxd4 (14. Nxd4 Qxc3+ 15. Qxc3 Nxc3 $14) 14... Nc6) 13. Qd2 $1 $18 {[%emt 0:00:03]} cxd4 {[%emt 0:00:29]} 14. Nxd4 {[%emt 0:00:04] Black got outplayed after the opening.  Weighted Error Value: White=0.01 (flawless) /Black=0.69} 1-0

[Event "24th Hoogeschool Zeeland 2022"]
[Site "Vlissingen"]
[Date "2022.08.09"]
[Round "5.10"]
[White "Wilgenhof, Otto"]
[Black "Leenhouts, Koen"]
[Result "0-1"]
[ECO "D90"]
[WhiteElo "2170"]
[BlackElo "2442"]
[Annotator "TA"]
[PlyCount "74"]
[EventDate "2022.08.05"]
[EventType "swiss"]
[EventCountry "NED"]
[SourceTitle "playchess.com"]
[Source "ChessBase"]
[SourceQuality "1"]
[TimeControl "40/5400+30:1800+30"]

{[%evp 12,74,0,0,6,-15,-28,-26,-21,-25,0,0,6,-9,-15,-38,-37,-38,-11,-22,11,17,22,26,172,168,167,56,77,60,108,122,167,115,118,0,0,0,0,0,0,-8,-8,-101,-104,-165,-169,-172,-191,-178,-180,-236,-229,-272,-247,-247,-220,-243,-160,-159,-152,-588,-577,-569,-532]} 1. d4 {[%emt 0:00:03]} Nf6 {[%emt 0:00:07]} 2. Nf3 {[%emt 0:00:08]} g6 {[%emt 0:00:22]} 3. c4 {[%emt 0:00:06]} Bg7 {[%emt 0:00:25]} 4. Nc3 {[%emt 0:00:11]} d5 {[%emt 0:00:22]} 5. cxd5 {[%emt 0:01:06]} Nxd5 {[%emt 0:00:10]} 6. Qb3 {[%emt 0:01:10]} Nxc3 {[%emt 0:05:00]} 7. bxc3 {[%emt 0:00:25]} c5 {[%emt 0:04:49] D90: Grünfeld: 4 Nf3 Bg7 sidelines.} 8. e4 {[%emt 0:03:13]} cxd4 {[%emt 0:02:54]} 9. cxd4 {[%emt 0:00:42]} Nc6 {[%emt 0:00:58] [#] Black has an edge.} 10. Rb1 $146 {[%emt 0:03:11]} ({Predecessor:} 10. Bb2 O-O 11. Rd1 Qa5+ 12. Bc3 Qc7 13. Be2 Bg4 14. O-O Rac8 15. Ba1 e6 16. h3 Bxf3 17. Bxf3 {0-1 (44) Kanyingi,J (2132)-Olson,T Seattle 2015}) 10... O-O {[%emt 0:07:21]} 11. d5 {[%emt 0:02:24]} Na5 {[%emt 0:01:15]} 12. Qa3 {[%emt 0:03:25]} f5 {[%emt 0:07:17]} 13. Bd2 {[%emt 0:03:51]} b6 {[%emt 0:00:35]} 14. Bxa5 {[%emt 0:16:44]} bxa5 {[%emt 0:00:10]} 15. Bc4 {[%emt 0:00:46]} Qd6 {[%emt 0:12:50]} (15... fxe4 {seems wilder.} 16. d6+ e6 17. Nd2 Qg5) 16. Qxd6 {[%emt 0:06:28]} exd6 {[%emt 0:00:09]} 17. e5 {[%emt 0:00:33]} dxe5 {[%emt 0:07:27]} (17... Bd7 $11) 18. d6+ $18 {[%emt 0:00:22]} Kh8 {[%emt 0:00:10]} 19. Ng5 {[%emt 0:16:09]} (19. Bd5 $18) 19... Bf6 $14 {[%emt 0:03:25]} 20. Bd5 {[%emt 0:11:21]} Ba6 {[%emt 0:10:41]} 21. Bxa8 $16 {[%emt 0:01:16][%cal Og5e6] Strongly threatening Ne6!} Rxa8 {[%emt 0:02:36] [#]} 22. Ne6 {[%emt 0:00:43]} (22. h4 $1 $18) 22... Bc4 {[%emt 0:03:05][%csl LRa2,LRe6]} 23. Nc7 {[%emt 0:02:58]} (23. Nc5 $16) 23... Rd8 $36 {[%emt 0:00:37][%mdl 2048] White is under pressure.} 24. Rc1 {[%emt 0:05:56]} Bxa2 {[%emt 0:00:45]} 25. O-O {[%emt 0:01:31]} e4 {[%emt 0:04:41]} ({Much less strong is} 25... Rxd6 26. Ne8 Rb6 27. Nxf6 Rxf6 28. Rc8+ Kg7 29. Rc7+ Bf7 30. Rxa7 $16) 26. Rc6 {[%emt 0:03:11]} a4 {[%emt 0:04:27][%cal Ba5a4,Ba4a3,Ba3a2][%mdl 32]} 27. Nb5 {[%emt 0:03:06]} (27. d7 $11 {remains equal.} Rxd7 28. Rxf6 Rxc7 29. Ra1) 27... Bd5 $17 {[%emt 0:07:28]} 28. Rc7 {[%emt 0:02:29]} (28. Rc5 $17 Be6 29. Rd1) 28... a6 $19 {[%emt 0:00:38]} 29. Nc3 {[%emt 0:00:48]} Bb3 {[%emt 0:02:01]} ({Worse is} 29... Rxd6 30. Nxa4 Bg8 31. Rb1 $15) 30. d7 {[%emt 0:02:08] [#]} Kg7 $1 {[%emt 0:00:30]} 31. Rc1 {[%emt 0:02:26]} (31. h3 $142) 31... a3 {[%emt 0:06:56]} 32. Rb7 {[%emt 0:04:28]} Bc4 {[%emt 0:00:23]} 33. Rb4 {[%emt 0:02:26]} Bf7 {[%emt 0:01:02] A strong pair of Bishops.} 34. Ra4 {[%emt 0:00:07]} Bxc3 {[%emt 0:00:24]} 35. Rxc3 {[%emt 0:00:13]} Rxd7 {[%emt 0:00:06][%cal Rd7d1]} 36. Rc1 {[%emt 0:00:45] Against Rd1+} (36. Kf1 $17) 36... a2 {[%emt 0:00:07] And now ...Rb7 would win.} 37. Rxa6 {[%emt 0:00:17]} Rb7 {[%emt 0:00:19] Against Rb6. Quite a comeback for Black.  Weighted Error Value: White=0.52/Black=0.18 (very precise)} 0-1

[Event "24th Hoogeschool Zeeland 2022"]
[Site "Vlissingen"]
[Date "2022.08.09"]
[Round "5.11"]
[White "Bui, Bao Anh Le"]
[Black "Dhulipalla Bala Chandra Prasad"]
[Result "1/2-1/2"]
[ECO "C55"]
[WhiteElo "2109"]
[BlackElo "2423"]
[Annotator "TA"]
[PlyCount "42"]
[EventDate "2022.08.05"]
[EventType "swiss"]
[EventCountry "NED"]
[SourceTitle "playchess.com"]
[Source "ChessBase"]
[SourceQuality "1"]
[TimeControl "40/5400+30:1800+30"]

{[%evp 11,42,15,16,10,12,7,9,13,10,16,13,20,31,29,29,37,35,8,10,0,23,22,27,9,24,22,27,0,24,35,45,26,41]} 1. e4 {[%emt 0:02:55]} e5 {[%emt 0:00:05]} 2. Nf3 {[%emt 0:02:50]} Nc6 {[%emt 0:00:02]} 3. Bc4 {[%emt 0:00:37]} Nf6 {[%emt 0:00:06]} 4. d3 {[%emt 0:00:32]} Be7 {[%emt 0:00:04]} 5. O-O {[%emt 0:02:16]} O-O {[%emt 0:00:04]} 6. Nc3 {[%emt 0:00:22]} d6 {[%emt 0:00:23]} 7. a4 {[%emt 0:01:10] 7.a3 is the modern continuation. C55: Two Knights: 4 d3, 4 d4 exd4 5 e5 and Max Lange Attack.} Bg4 {[%emt 0:01:32]} 8. h3 {[%emt 0:01:29]} Bxf3 {[%emt 0:16:11]} 9. Qxf3 {[%emt 0:00:48] The position is equal.} Nd4 {[%emt 0:00:03][%csl LRc2,LRf3]} 10. Qd1 {[%emt 0:01:06]} c6 {[%emt 0:00:05]} 11. Ne2 {[%emt 0:19:07] [#]} d5 $146 {[%emt 0:36:46]} ({Predecessor:} 11... Ne6 12. Ng3 d5 13. Ba2 g6 14. c3 Qd6 15. Bh6 Rfe8 16. Re1 Rad8 17. Qf3 Bf8 {½-½ (27) Marquardt,G (2250)-Klewe,W (2254) ICCF email 2019}) 12. Nxd4 {[%emt 0:05:39]} exd4 {[%emt 0:00:05]} 13. exd5 {[%emt 0:00:07]} Nxd5 {[%emt 0:00:12]} 14. Qf3 {[%emt 0:03:54]} Bb4 {[%emt 0:06:38]} 15. Qg4 {[%emt 0:11:50]} Nb6 {[%emt 0:05:59]} (15... Nf6 $5 {[%cal Rf6g4]} 16. Qh4 h6 $11) 16. Bb3 {[%emt 0:01:14]} a5 {[%emt 0:00:14]} 17. Bf4 {[%emt 0:06:59] Threatening Be5.} Qf6 {[%emt 0:04:18][%cal Oh7h5] Against Be5} 18. Bg5 {[%emt 0:05:13]} Qd6 {[%emt 0:01:32]} 19. Bf4 {[%emt 0:01:29]} Qd7 {[%emt 0:05:05]} 20. Be5 {[%emt 0:03:29][%csl Ge5][%cal Rg4g7] [#]} Qxg4 {[%emt 0:00:42]} 21. hxg4 {[%emt 0:00:07]} Bc5 $1 {[%emt 0:00:14] Weighted Error Value: White=0.06 (flawless) /Black=0.05 (flawless)} 1/2-1/2

[Event "24th Hoogeschool Zeeland 2022"]
[Site "Vlissingen"]
[Date "2022.08.09"]
[Round "5.12"]
[White "Pham, Khoi"]
[Black "Zevenhuizen, Daniel"]
[Result "1-0"]
[ECO "B07"]
[WhiteElo "2317"]
[BlackElo "2168"]
[Annotator "TA"]
[PlyCount "95"]
[EventDate "2022.08.05"]
[EventType "swiss"]
[EventCountry "NED"]
[SourceTitle "playchess.com"]
[Source "ChessBase"]
[SourceQuality "1"]
[TimeControl "40/5400+30:1800+30"]

{[%evp 14,95,47,50,100,94,147,153,137,51,49,38,44,51,42,64,56,40,59,40,54,52,85,7,24,17,56,51,57,0,0,0,0,0,0,-47,75,78,102,78,85,90,95,83,87,80,86,76,151,154,215,69,157,104,131,126,194,217,220,213,242,91,254,97,213,206,358,317,294,296,425,465,436,441,464,460,709,697,806,667,644,631,803,605]} 1. e4 {[%emt 0:01:28]} d6 {[%emt 0:03:07]} 2. d4 {[%emt 0:00:09]} Nf6 {[%emt 0:00:06]} 3. Nc3 {[%emt 0:00:03]} g6 {[%emt 0:00:07]} 4. Bg5 {[%emt 0:00:21]} Bg7 {[%emt 0:00:19]} 5. Qd2 {[%emt 0:00:27]} O-O {[%emt 0:02:24]} 6. O-O-O {[%emt 0:02:09]} c6 {[%emt 0:00:58]} 7. h4 {[%emt 0:02:42]} b5 {[%emt 0:01:21]} 8. f3 {[%emt 0:03:56][%cal Oh4h5]} Nbd7 {[%emt 0:10:23] B07: Pirc Defence: Miscellaneous Systems.} (8... h5 $14) 9. h5 {[%emt 0:14:25] [#]} e5 $146 {[%emt 0:07:01]} (9... Nxh5 $142 10. Nce2 Nb6) ({Predecessor:} 9... Nb6 10. Bh6 Qc7 11. Bxg7 Kxg7 12. hxg6 fxg6 13. Nge2 Be6 14. d5 cxd5 15. Nf4 Bf7 16. exd5 {1-0 (25) Oehrlein,T (2163)-Plakidine,A (1956) Bayern 2005}) 10. hxg6 $16 {[%emt 0:05:13]} fxg6 {[%emt 0:00:46] White is clearly better.} 11. dxe5 {[%emt 0:04:03] White is more active.} (11. d5 $16 cxd5 12. Nxd5) 11... Nxe5 $14 {[%emt 0:00:54]} 12. Qxd6 {[%emt 0:07:04]} Qxd6 {[%emt 0:00:25]} 13. Rxd6 {[%emt 0:00:05]} b4 {[%emt 0:21:15]} 14. Bxf6 {[%emt 0:10:01]} Bxf6 {[%emt 0:00:07]} 15. Na4 {[%emt 0:03:33]} Be7 {[%emt 0:00:37]} 16. Rd1 {[%emt 0:00:55]} Be6 {[%emt 0:03:41]} 17. b3 {[%emt 0:05:06]} Rad8 {[%emt 0:07:23]} 18. Bd3 {[%emt 0:05:13]} (18. Rxd8 $16 Rxd8 19. f4) 18... c5 {[%emt 0:16:39]} 19. Nb2 {[%emt 0:01:52] Against c4} a5 {[%emt 0:02:59]} 20. Ne2 {[%emt 0:05:17]} a4 {[%emt 0:00:18]} 21. Nc4 {[%emt 0:05:01]} (21. Bb5 $14) 21... Nxd3+ $11 {[%emt 0:02:22]} 22. Rxd3 {[%emt 0:01:27]} axb3 {[%emt 0:05:26]} 23. axb3 {[%emt 0:01:14]} Ra8 {[%emt 0:11:22]} 24. Kd2 {[%emt 0:04:12]} (24. Rhd1 $1 $11 {is more appropriate.}) 24... Ra2 {[%emt 0:00:34]} (24... Bxc4 $15 25. bxc4 Bg5+ 26. f4 Bxf4+ 27. Nxf4 Rxf4) 25. g3 $16 {[%emt 0:01:16]} Rb8 {[%emt 0:01:23]} 26. Nc1 {[%emt 0:01:29]} Ra1 {[%emt 0:00:14]} 27. Rd1 {[%emt 0:00:24]} Kg7 {[%emt 0:00:18]} 28. Ke3 {[%emt 0:01:12]} h5 {[%emt 0:00:31]} 29. Ne2 {[%emt 0:01:23]} Ra2 {[%emt 0:00:03]} 30. R1d2 {[%emt 0:00:09]} h4 {[%emt 0:00:23]} ({Black should play} 30... Bg5+ 31. Nf4 (31. f4 Be7 $16) 31... Bxc4 32. bxc4 Rf8) 31. gxh4 {[%emt 0:00:35]} Bxh4 {[%emt 0:00:01] [#]} (31... Bxc4 $16 {was called for.} 32. bxc4 Ra3) 32. f4 {[%emt 0:01:48]} (32. Ne5 $1 $18) 32... Re8 {[%emt 0:01:52]} ({Black should try} 32... Rh8 $14) 33. Kf3 {[%emt 0:00:32]} (33. Ng1 $142) 33... Ra7 {[%emt 0:00:56]} 34. Rd6 {[%emt 0:04:59]} Rae7 {[%emt 0:00:24]} (34... Bxc4 $16 35. bxc4 Ra3+ 36. R2d3 Rxd3+ 37. Rxd3 Kf7 38. Rd7+ Re7) 35. Ne5 $18 {[%emt 0:01:42]} g5 {[%emt 0:00:32]} 36. Nc6 {[%emt 0:00:54] Pair of Knights!} g4+ {[%emt 0:00:41]} 37. Kg2 $2 {[%emt 0:00:03]} (37. Ke3 $18 {is the precise move to win.}) 37... Rc7 {[%emt 0:00:26]} (37... Bf5 $16 {is a better defense.}) 38. f5 $2 {[%emt 0:00:53]} (38. Ng3 $18 {and White stays clearly on top.}) 38... Bc8 {[%emt 0:00:08]} (38... Bf7 $16) 39. Rg6+ {[%emt 0:00:43]} Kf7 $2 {[%emt 0:00:52]} (39... Kf8) 40. Rxg4 {[%emt 0:01:10]} Bf6 {[%emt 0:00:32] [#]} 41. Na5 {[%emt 0:31:03]} ({Weaker is} 41. Rd6 Rd7 42. Rxf6+ Kxf6 $16) 41... Rg8 {[%emt 0:03:53]} (41... Ba6 {keeps fighting.} 42. Kf3 Bb5) 42. Rxg8 {[%emt 0:00:00] White is clearly winning.} Kxg8 {[%emt 0:00:02]} 43. Kf3 {[%emt 0:00:00]} Rh7 {[%emt 0:00:40]} 44. Nf4 {[%emt 0:00:00] Against Rh3+} Kf7 {[%emt 0:01:05]} (44... Rh1 $142 45. Nd5 Bh4 46. Rg2+ Kf8) 45. Nc4 {[%emt 0:00:00] Nd6+ is the strong threat.} Be7 {[%emt 0:01:19]} 46. Nd6+ {[%emt 0:00:00]} Bxd6 {[%emt 0:00:03]} 47. Rxd6 {[%emt 0:00:00]} Rh2 {[%emt 0:00:04]} 48. Rc6 {[%emt 0:00:00][%csl LRc5,LRc8] Weighted Error Value: White=0.28 (precise) /Black=0.43} 1-0